fUSD/lending_fUSD_20250823
["ID","MTS","AMOUNT","RATE_DAILY","PERIOD"]
[380951767,1755912690549,-400.0,0.0001452,2]
[380951768,1755912690558,-400.0,0.0001452,2]
[380951769,1755912690567,-464.48,0.0001452,2]
[380951770,1755912690577,-400.0,0.0001452,2]
[380951771,1755912690586,-400.0,0.0001452,2]
[380951772,1755912690596,-400.0,0.0001452,2]
[380951773,1755912690610,-415.36,0.0001452,2]
[380951774,1755912690629,-400.0,0.0001452,2]
[380951775,1755912690643,-530.98,0.0001452,2]
[380951776,1755912690652,-400.0,0.0001452,2]
[380951777,1755912690661,-400.0,0.0001452,2]
[380951778,1755912690671,-512.43,0.0001452,2]
[380951779,1755912690681,-400.0,0.0001452,2]
[380951780,1755912690691,-516.79,0.0001452,2]
[380951781,1755912690700,-400.0,0.0001452,2]
[380951782,1755912690709,-400.0,0.0001452,2]
[380951783,1755912690718,-400.0,0.0001452,2]
[380951784,1755912690729,-400.0,0.0001452,2]
[380951785,1755912690738,-400.0,0.0001452,2]
[380951786,1755912690748,-409.44,0.0001452,2]
[380951787,1755912690757,-400.0,0.0001452,2]
[380951788,1755912690766,-400.0,0.0001452,2]
[380951789,1755912690775,-400.0,0.0001452,2]
[380951790,1755912690785,-499.57,0.0001452,2]
[380951791,1755912690795,-400.0,0.0001452,2]
[380951792,1755912690804,-476.9,0.0001452,2]
[380951793,1755912690813,-400.0,0.0001452,2]
[380951794,1755912690823,-577.94,0.0001452,2]
[380951795,1755912690840,-400.0,0.0001452,2]
[380951796,1755912690850,-400.0,0.0001452,2]
[380951797,1755912690860,-637.7,0.0001452,2]
[380951798,1755912690870,-423.83,0.0001452,2]
[380951799,1755912690880,-400.0,0.0001452,2]
[380951800,1755912690889,-873.47,0.0001452,2]
[380951801,1755912690899,-459.29,0.0001452,2]
[380951802,1755912690908,-571.62,0.0001452,2]
[380951803,1755912690917,-409.95,0.0001452,2]
[380951804,1755912690927,-151.0,0.0001452,2]
[380951805,1755912690936,-549.98,0.0001452,2]
[380951806,1755912690945,-400.0,0.0001452,2]
[380951807,1755912690955,-1704.41,0.0001452,2]
[380951808,1755912690964,-400.0,0.0001452,2]
[380951809,1755912690974,-400.0,0.0001452,2]
[380951810,1755912690983,-400.0,0.0001452,2]
[380951811,1755912690992,-400.0,0.0001452,2]
[380951812,1755912691002,-400.0,0.0001452,2]
[380951813,1755912691012,-531.47,0.0001452,2]
[380951814,1755912691026,-450.6,0.0001452,2]
[380951815,1755912691046,-456.18,0.0001452,2]
[380951816,1755912691064,-400.0,0.0001452,2]
[380951817,1755912691073,-400.0,0.0001452,2]
[380951818,1755912691084,-400.0,0.0001452,2]
[380951819,1755912691106,-400.0,0.0001452,2]
[380951820,1755912691118,-890.29,0.0001452,2]
[380951821,1755912691128,-406.1,0.0001452,2]
[380951822,1755912691138,-400.0,0.0001452,2]
[380951823,1755912691148,-400.0,0.0001452,2]
[380951824,1755912691158,-400.0,0.0001452,2]
[380951825,1755912691168,-400.0,0.0001452,2]
[380951826,1755912691179,-421.32,0.0001452,2]
[380951827,1755912691188,-400.0,0.0001452,2]
[380951828,1755912691198,-478.43,0.0001452,2]
[380951829,1755912691208,-400.0,0.0001452,2]
[380951830,1755912691218,-487.04,0.0001452,2]
[380951831,1755912691228,-595.85,0.0001452,2]
[380951832,1755912691237,-400.0,0.0001452,2]
[380951833,1755912691247,-510.81,0.0001452,2]
[380951834,1755912691257,-542.43,0.0001452,2]
[380951835,1755912691267,-451.04,0.0001452,2]
[380951836,1755912691275,-400.0,0.0001452,2]
[380951837,1755912691285,-477.02,0.0001452,2]
[380951838,1755912691294,-667.8,0.0001452,2]
[380951839,1755912691306,-400.0,0.0001452,2]
[380951840,1755912691315,-400.0,0.0001452,2]
[380951841,1755912691325,-532.35470109,0.0001452,2]
[380951842,1755912691335,-754.76,0.0001452,2]
[380951843,1755912691345,-400.0,0.0001452,2]
[380951844,1755912691355,-151.0,0.0001452,2]
[380951845,1755912691366,-1030.1,0.0001452,2]
[380951846,1755912691376,-510.89,0.0001452,2]
[380951847,1755912691385,-179.705776,0.0001452,2]
[380951848,1755912691395,-400.0,0.0001452,2]
[380951849,1755912691404,-436.99,0.0001452,2]
[380951850,1755912691414,-657.25,0.0001452,2]
[380951851,1755912691424,-400.0,0.0001452,2]
[380951852,1755912691435,-400.0,0.0001452,2]
[380951853,1755912691444,-400.0,0.0001452,2]
[380951854,1755912691454,-400.0,0.0001452,2]
[380951855,1755912691463,-417.45,0.0001452,2]
[380951856,1755912691473,-400.0,0.0001452,2]
[380951857,1755912691484,-400.0,0.0001452,2]
[380951858,1755912691494,-1067.81,0.0001452,2]
[380951859,1755912691504,-400.0,0.0001452,2]
[380951860,1755912691513,-151.0,0.0001452,2]
[380951861,1755912691522,-400.0,0.0001452,2]
[380951862,1755912691532,-400.0,0.0001452,2]
[380951863,1755912691542,-786.01,0.0001452,2]
[380951864,1755912691551,-578.42,0.0001452,2]
[380951865,1755912691561,-400.0,0.0001452,2]
[380951866,1755912691571,-1145.67,0.0001452,2]
[380951867,1755912691581,-624.95,0.0001452,2]
[380951868,1755912691590,-400.0,0.0001452,2]
[380951869,1755912691599,-400.0,0.0001452,2]
[380951870,1755912691609,-439.98,0.0001452,2]
[380951871,1755912691619,-400.0,0.0001452,2]
[380951872,1755912691628,-734.24,0.0001452,2]
[380951873,1755912691638,-400.0,0.0001452,2]
[380951874,1755912691648,-716.27,0.0001452,2]
[380951875,1755912691659,-400.0,0.0001452,2]
[380951876,1755912691670,-400.0,0.0001452,2]
[380951877,1755912691682,-677.21,0.0001452,2]
[380951878,1755912691692,-400.0,0.0001452,2]
[380951879,1755912691702,-400.0,0.0001452,2]
[380951880,1755912691714,-400.0,0.0001452,2]
[380951881,1755912691725,-503.77,0.0001452,2]
[380951882,1755912691736,-400.0,0.0001452,2]
[380951883,1755912691745,-831.56,0.0001452,2]
[380951884,1755912691755,-651.98,0.0001452,2]
[380951885,1755912691765,-742.35,0.0001452,2]
[380951886,1755912691775,-541.87,0.0001452,2]
[380951887,1755912691784,-400.0,0.0001452,2]
[380951888,1755912691794,-400.0,0.0001452,2]
[380951889,1755912691804,-462.17,0.0001452,2]
[380951890,1755912691813,-400.0,0.0001452,2]
[380951891,1755912691823,-400.0,0.0001452,2]
[380951892,1755912691832,-422.39,0.0001452,2]
[380951893,1755912691842,-400.0,0.0001452,2]
[380951894,1755912691851,-535.7,0.0001452,2]
[380951895,1755912691861,-400.0,0.0001452,2]
[380951896,1755912691871,-601.7,0.0001452,2]
[380951897,1755912691881,-598.88,0.0001452,2]
[380951898,1755912691890,-400.0,0.0001452,2]
[380951899,1755912691900,-729.0,0.0001452,2]
[380951900,1755912691909,-400.0,0.0001452,2]
[380951901,1755912691918,-151.0,0.0001452,2]
[380951902,1755912691927,-560.98,0.0001452,2]
[380951903,1755912691937,-482.06,0.0001452,2]
[380951904,1755912691947,-400.0,0.0001452,2]
[380951905,1755912691956,-648.16,0.0001452,2]
[380951906,1755912691965,-151.0,0.0001452,2]
[380951907,1755912691975,-400.0,0.0001452,2]
[380951908,1755912691985,-164.656544,0.0001452,2]
[380951909,1755912691994,-485.12,0.0001452,2]
[380951910,1755912692004,-581.45,0.0001452,2]
[380951911,1755912692014,-151.0,0.0001452,2]
[380951912,1755912692024,-400.0,0.0001452,2]
[380951913,1755912692033,-463.13,0.0001452,2]
[380951914,1755912692043,-607.66,0.0001452,2]
[380951915,1755912692053,-400.0,0.0001452,2]
[380951916,1755912692144,-400.0,0.0001452,2]
[380951917,1755912692153,-483.72,0.0001452,2]
[380951918,1755912692163,-506.32,0.0001452,2]
[380951919,1755912692172,-400.0,0.0001452,2]
[380951920,1755912692182,-657.0,0.0001452,2]
[380951921,1755912692192,-460.21,0.0001452,2]
[380951922,1755912692201,-664.59,0.0001452,2]
[380951923,1755912692210,-400.0,0.0001452,2]
[380951924,1755912692220,-518.18,0.0001452,2]
[380951925,1755912692229,-548.04,0.0001452,2]
[380951926,1755912692238,-400.0,0.0001452,2]
[380951927,1755912692247,-538.71,0.0001452,2]
[380951928,1755912692256,-623.23,0.0001452,2]
[380951929,1755912692266,-490.94,0.0001452,2]
[380951930,1755912692275,-400.0,0.0001452,2]
[380951931,1755912692285,-407.86,0.0001452,2]
[380951932,1755912692295,-492.11,0.0001452,2]
[380951933,1755912692304,-585.32,0.0001452,2]
[380951934,1755912692313,-704.8,0.0001452,2]
[380951935,1755912692323,-400.0,0.0001452,2]
[380951936,1755912692332,-419.51,0.0001452,2]
[380951937,1755912692342,-536.25,0.0001452,2]
[380951938,1755912692351,-400.0,0.0001452,2]
[380951939,1755912692361,-416.08,0.0001452,2]
[380951940,1755912692375,-400.0,0.0001452,2]
[380951941,1755912692384,-400.0,0.0001452,2]
[380951942,1755912692393,-552.15,0.0001452,2]
[380951943,1755912692402,-151.0,0.0001452,2]
[380951944,1755912692413,-685.75,0.0001452,2]
[380951945,1755912692422,-400.0,0.0001452,2]
[380951946,1755912692431,-151.0,0.0001452,2]
[380951947,1755912692441,-151.0,0.0001452,2]
[380951948,1755912692451,-400.0,0.0001452,2]
[380951949,1755912692460,-1265.94,0.0001452,2]
[380951950,1755912692469,-475.58,0.0001452,2]
[380951951,1755912692478,-400.0,0.0001452,2]
[380951952,1755912692487,-400.0,0.0001452,2]
[380951953,1755912692496,-151.0,0.0001452,2]
[380951954,1755912692505,-433.85,0.0001452,2]
[380951955,1755912692515,-151.0,0.0001452,2]
[380951956,1755912692524,-400.0,0.0001452,2]
[380951957,1755912692534,-400.0,0.0001452,2]
[380951958,1755912692543,-400.0,0.0001452,2]
[380951959,1755912692553,-151.0,0.0001452,2]
[380951960,1755912692562,-400.0,0.0001452,2]
[380951961,1755912692571,-400.0,0.0001452,2]
[380951962,1755912692580,-400.0,0.0001452,2]
[380951963,1755912692590,-428.36,0.0001452,2]
[380951964,1755912692599,-543.91,0.0001452,2]
[380951965,1755912692608,-427.61,0.0001452,2]
[380951966,1755912692617,-151.0,0.0001452,2]
[380951967,1755912692625,-1000.0,0.0001452,2]
[380951968,1755912692635,-400.0,0.0001452,2]
[380951969,1755912692644,-400.0,0.0001452,2]
[380951970,1755912692653,-400.0,0.0001452,2]
[380951971,1755912692662,-763.66,0.0001452,2]
[380951972,1755912692671,-400.0,0.0001452,2]
[380951973,1755912692681,-400.0,0.0001452,2]
[380951974,1755912692690,-151.0,0.0001452,2]
[380951975,1755912692699,-400.0,0.0001452,2]
[380951976,1755912692708,-253.422542,0.0001452,2]
[380951977,1755912692717,-482.08,0.0001452,2]
[380951978,1755912692726,-552.38,0.0001452,2]
[380951979,1755912692735,-274.02058959,0.0001452,2]
[380951980,1755912692745,-400.0,0.0001452,2]
[380951981,1755912692755,-793.95,0.0001452,2]
[380951982,1755912692764,-400.0,0.0001452,2]
[380951983,1755912692773,-400.0,0.0001452,2]
[380951984,1755912692782,-400.0,0.0001452,2]
[380951985,1755912692791,-476.99,0.0001452,2]
[380951986,1755912692800,-400.0,0.0001452,2]
[380951987,1755912692810,-400.0,0.0001452,2]
[380951988,1755912692819,-400.0,0.0001452,2]
[380951989,1755912692828,-400.0,0.0001452,2]
[380951990,1755912692838,-151.0,0.0001452,2]
[380951991,1755912692847,-400.0,0.0001452,2]
[380951992,1755912692856,-772.08,0.0001452,2]
[380951993,1755912692866,-707.33,0.0001452,2]
[380951994,1755912692875,-607.86,0.0001452,2]
[380951995,1755912692885,-251.856765,0.0001452,2]
[380951996,1755912692895,-577.68,0.0001452,2]
[380951997,1755912692905,-400.0,0.0001452,2]
[380951998,1755912692914,-151.0,0.0001452,2]
[380951999,1755912692923,-151.0,0.0001452,2]
[380952000,1755912692934,-446.17,0.0001452,2]
[380952001,1755912692943,-499.75,0.0001452,2]
[380952002,1755912692952,-151.0,0.0001452,2]
[380952003,1755912692962,-543.86,0.0001452,2]
[380952004,1755912692971,-151.0,0.0001452,2]
[380952005,1755912692981,-151.0,0.0001452,2]
[380952006,1755912692990,-752.86,0.0001452,2]
[380952007,1755912692999,-475.34,0.0001452,2]
[380952008,1755912693009,-156.17461,0.0001452,2]
[380952009,1755912693024,-191.177491,0.0001452,2]
[380952010,1755912693034,-151.0,0.0001452,2]
[380952011,1755912693044,-400.0,0.0001452,2]
[380952012,1755912693054,-602.1,0.0001452,2]
[380952013,1755912693063,-496.62,0.0001452,2]
[380952014,1755912693073,-480.32,0.0001452,2]
[380952015,1755912693082,-400.0,0.0001452,2]
[380952016,1755912693091,-400.0,0.0001452,2]
[380952017,1755912693101,-400.0,0.0001452,2]
[380952018,1755912693110,-400.0,0.0001452,2]
[380952019,1755912693120,-633.62,0.0001452,2]
[380952020,1755912693129,-400.0,0.0001452,2]
[380952021,1755912693139,-400.0,0.0001452,2]
[380952022,1755912693148,-400.0,0.0001452,2]
[380952023,1755912693158,-151.0,0.0001452,2]
[380952024,1755912693167,-400.0,0.0001452,2]
[380952025,1755912693177,-400.0,0.0001452,2]
[380952026,1755912693187,-560.58,0.0001452,2]
[380952027,1755912693196,-614.22,0.0001452,2]
[380952028,1755912693206,-400.0,0.0001452,2]
[380952029,1755912693215,-428.79,0.0001452,2]
[380952030,1755912693225,-416.01,0.0001452,2]
[380952031,1755912693235,-400.0,0.0001452,2]
[380952032,1755912693244,-400.0,0.0001452,2]
[380952033,1755912693254,-400.0,0.0001452,2]
[380952034,1755912693264,-425.3,0.0001452,2]
[380952035,1755912693274,-400.0,0.0001452,2]
[380952036,1755912693284,-508.68,0.0001452,2]
[380952037,1755912693293,-535.36,0.0001452,2]
[380952038,1755912693302,-400.0,0.0001452,2]
[380952039,1755912693312,-193.17723,0.0001452,2]
[380952040,1755912693322,-400.0,0.0001452,2]
[380952041,1755912693331,-470.91,0.0001452,2]
[380952042,1755912693352,-418.5,0.0001452,2]
[380952043,1755912693364,-400.0,0.0001452,2]
[380952044,1755912693375,-400.0,0.0001452,2]
[380952045,1755912693385,-400.0,0.0001452,2]
[380952046,1755912693395,-747.8,0.0001452,2]
[380952047,1755912693405,-400.0,0.0001452,2]
[380952048,1755912693414,-400.0,0.0001452,2]
[380952049,1755912693424,-433.94,0.0001452,2]
[380952050,1755912693434,-400.0,0.0001452,2]
[380952051,1755912693444,-400.0,0.0001452,2]
[380952052,1755912693453,-151.0,0.0001452,2]
[380952053,1755912693463,-400.0,0.0001452,2]
[380952054,1755912693473,-1000.0,0.0001452,2]
[380952055,1755912693483,-472.48,0.0001452,2]
[380952056,1755912693492,-151.0,0.0001452,2]
[380952057,1755912693501,-400.0,0.0001452,2]
[380952058,1755912693510,-400.0,0.0001452,2]
[380952059,1755912693520,-855.010025,0.0001452,2]
[380952060,1755912693530,-400.0,0.0001452,2]
[380952061,1755912693539,-400.0,0.0001452,2]
[380952062,1755912693548,-400.0,0.0001452,2]
[380952063,1755912693558,-400.0,0.0001452,2]
[380952064,1755912693568,-151.0,0.0001452,2]
[380952065,1755912693577,-151.0,0.0001452,2]
[380952066,1755912693587,-400.0,0.0001452,2]
[380952067,1755912693597,-631.75,0.0001452,2]
[380952068,1755912693606,-400.0,0.0001452,2]
[380952069,1755912693616,-151.0,0.0001452,2]
[380952070,1755912693626,-151.0,0.0001452,2]
[380952071,1755912693636,-400.0,0.0001452,2]
[380952072,1755912693645,-151.0,0.0001452,2]
[380952073,1755912693654,-479.25,0.0001452,2]
[380952074,1755912693664,-400.0,0.0001452,2]
[380952075,1755912693673,-151.0,0.0001452,2]
[380952076,1755912693683,-737.35,0.0001452,2]
[380952077,1755912693692,-473.06,0.0001452,2]
[380952078,1755912693702,-400.0,0.0001452,2]
[380952079,1755912693712,-400.0,0.0001452,2]
[380952080,1755912693721,-464.53,0.0001452,2]
[380952081,1755912693731,-400.0,0.0001452,2]
[380952082,1755912693740,-400.0,0.0001452,2]
[380952083,1755912693750,-605.41,0.0001452,2]
[380952084,1755912693760,-451.38,0.0001452,2]
[380952085,1755912693769,-763.68,0.0001452,2]
[380952086,1755912693779,-400.0,0.0001452,2]
[380952087,1755912693788,-400.0,0.0001452,2]
[380952088,1755912693797,-400.0,0.0001452,2]
[380952089,1755912693806,-400.0,0.0001452,2]
[380952090,1755912693815,-400.0,0.0001452,2]
[380952091,1755912693825,-400.0,0.0001452,2]
[380952092,1755912693834,-400.0,0.0001452,2]
[380952093,1755912693843,-437.52,0.0001452,2]
[380952094,1755912693853,-496.31,0.0001452,2]
[380952095,1755912693863,-1076.1,0.0001452,2]
[380952096,1755912693872,-400.0,0.0001452,2]
[380952097,1755912693881,-151.0,0.0001452,2]
[380952098,1755912693890,-400.0,0.0001452,2]
[380952099,1755912693899,-400.0,0.0001452,2]
[380952100,1755912693909,-255.052984,0.0001452,2]
[380952101,1755912693918,-517.63,0.0001452,2]
[380952102,1755912693929,-400.0,0.0001452,2]
[380952103,1755912693939,-400.0,0.0001452,2]
[380952104,1755912693949,-531.82,0.0001452,2]
[380952105,1755912693959,-538.24,0.0001452,2]
[380952106,1755912693969,-400.0,0.0001452,2]
[380952107,1755912693978,-599.57,0.0001452,2]
[380952108,1755912693987,-400.0,0.0001452,2]
[380952109,1755912693997,-400.0,0.0001452,2]
[380952110,1755912694006,-578.64,0.0001452,2]
[380952111,1755912694016,-481.87,0.0001452,2]
[380952112,1755912694025,-876.45,0.0001452,2]
[380952113,1755912694034,-400.0,0.0001452,2]
[380952114,1755912694045,-400.0,0.0001452,2]
[380952115,1755912694054,-596.46,0.0001452,2]
[380952116,1755912694064,-151.0,0.0001452,2]
[380952117,1755912694073,-151.0,0.0001452,2]
[380952118,1755912694082,-151.0,0.0001452,2]
[380952119,1755912694091,-400.0,0.0001452,2]
[380952120,1755912694100,-151.0,0.0001452,2]
[380952121,1755912694109,-750.69,0.0001452,2]
[380952122,1755912694118,-400.0,0.0001452,2]
[380952123,1755912694128,-483.91,0.0001452,2]
[380952124,1755912694137,-400.0,0.0001452,2]
[380952125,1755912694146,-429.94,0.0001452,2]
[380952126,1755912694156,-2560.03,0.0001452,2]
[380952127,1755912694165,-151.0,0.0001452,2]
[380952128,1755912694174,-400.0,0.0001452,2]
[380952129,1755912694186,-400.0,0.0001452,2]
[380952130,1755912694196,-583.44,0.0001452,2]
[380952131,1755912694205,-511.98,0.0001452,2]
[380952132,1755912694215,-412.65,0.0001452,2]
[380952133,1755912694227,-400.0,0.0001452,2]
[380952134,1755912694237,-400.0,0.0001452,2]
[380952135,1755912694246,-400.0,0.0001452,2]
[380952136,1755912694256,-789.4,0.0001452,2]
[380952137,1755912694265,-714.55,0.0001452,2]
[380952138,1755912694275,-466.47,0.0001452,2]
[380952139,1755912694284,-400.0,0.0001452,2]
[380952140,1755912694294,-400.0,0.0001452,2]
[380952141,1755912694303,-479.88,0.0001452,2]
[380952142,1755912694313,-483.0,0.0001452,2]
[380952143,1755912694322,-638.96,0.0001452,2]
[380952144,1755912694331,-411.07,0.0001452,2]
[380952145,1755912694341,-626.45,0.0001452,2]
[380952146,1755912694350,-400.0,0.0001452,2]
[380952147,1755912694360,-459.86,0.0001452,2]
[380952148,1755912694372,-400.0,0.0001452,2]
[380952149,1755912694382,-7170.55,0.0001452,2]
[380952150,1755912694391,-590.56,0.0001452,2]
[380952151,1755912694400,-400.0,0.0001452,2]
[380952152,1755912694411,-489.74,0.0001452,2]
[380952153,1755912694420,-400.0,0.0001452,2]
[380952154,1755912694429,-798.6,0.0001452,2]
[380952155,1755912694440,-400.0,0.0001452,2]
[380952156,1755912694449,-414.4,0.0001452,2]
[380952157,1755912694459,-755.36,0.0001452,2]
[380952158,1755912694468,-400.0,0.0001452,2]
[380952159,1755912694478,-2114.53,0.0001452,2]
[380952160,1755912694487,-556.35,0.0001452,2]
[380952161,1755912694496,-400.0,0.0001452,2]
[380952162,1755912694505,-522.88,0.0001452,2]
[380952163,1755912694514,-400.0,0.0001452,2]
[380952164,1755912694523,-400.0,0.0001452,2]
[380952165,1755912694532,-400.0,0.0001452,2]
[380952166,1755912694541,-446.5,0.0001452,2]
[380952167,1755912694550,-400.0,0.0001452,2]
[380952168,1755912694559,-2594.59,0.0001452,2]
[380952169,1755912694568,-400.0,0.0001452,2]
[380952170,1755912694577,-400.0,0.0001452,2]
[380952171,1755912694586,-389.36,0.0001452,2]
[380952172,1755912694595,-529.92,0.0001452,2]
[380952173,1755912694605,-705.67,0.0001452,2]
[380952174,1755912694614,-896.87,0.0001452,2]
[380952175,1755912694622,-400.0,0.0001452,2]
[380952176,1755912694631,-1094.77,0.0001452,2]
[380952177,1755912694641,-741.74,0.0001452,2]
[380952178,1755912694650,-400.0,0.0001452,2]
[380952179,1755912694660,-418.69,0.0001452,2]
[380952180,1755912694669,-869.76,0.0001452,2]
[380952181,1755912694679,-394.20391133,0.0001452,2]
[380952182,1755912694688,-400.0,0.0001452,2]
[380952183,1755912694697,-400.0,0.0001452,2]
[380952184,1755912694706,-437.77,0.0001452,2]
[380952185,1755912694715,-562.13,0.0001452,2]
[380952186,1755912694724,-1048.91,0.0001452,2]
[380952187,1755912694734,-541.27,0.0001452,2]
[380952188,1755912694743,-723.99,0.0001452,2]
[380952189,1755912694753,-400.0,0.0001452,2]
[380952190,1755912694763,-400.0,0.0001452,2]
[380952191,1755912694772,-530.85,0.0001452,2]
[380952192,1755912694782,-614.11,0.0001452,2]
[380952193,1755912694792,-4903.23,0.0001452,2]
[380952194,1755912694802,-963.36,0.0001452,2]
[380952195,1755912694812,-400.0,0.0001452,2]
[380952196,1755912694821,-685.08,0.0001452,2]
[380952197,1755912694830,-508.77,0.0001452,2]
[380952198,1755912694839,-400.0,0.0001452,2]
[380952199,1755912694849,-956.53,0.0001452,2]
[380952200,1755912694858,-400.0,0.0001452,2]
[380952201,1755912694868,-400.0,0.0001452,2]
[380952202,1755912694877,-690.94,0.0001452,2]
[380952203,1755912694887,-400.0,0.0001452,2]
[380952204,1755912694896,-781.78,0.0001452,2]
[380952205,1755912694906,-400.0,0.0001452,2]
[380952206,1755912694916,-516.0,0.0001452,2]
[380952207,1755912694925,-407.82,0.0001452,2]
[380952208,1755912694936,-2566.25,0.0001452,2]
[380952209,1755912694945,-166.839125,0.0001452,2]
[380952210,1755912694954,-400.0,0.0001452,2]
[380952211,1755912694964,-573.49,0.0001452,2]
[380952212,1755912694973,-400.0,0.0001452,2]
[380952213,1755912694982,-400.0,0.0001452,2]
[380952214,1755912694992,-400.0,0.0001452,2]
[380952215,1755912695001,-548.91,0.0001452,2]
[380952216,1755912695010,-400.0,0.0001452,2]
[380952217,1755912695019,-1155.0,0.0001452,2]
[380952218,1755912695029,-468.96,0.0001452,2]
[380952219,1755912695038,-947.84,0.0001452,2]
[380952220,1755912695047,-659.68,0.0001452,2]
[380952221,1755912695057,-400.0,0.0001452,2]
[380952222,1755912695065,-1053.52,0.0001452,2]
[380952223,1755912695075,-151.0,0.0001452,2]
[380952224,1755912695084,-691.7,0.0001452,2]
[380952225,1755912695093,-235.86471,0.0001452,2]
[380952226,1755912695102,-719.87,0.0001452,2]
[380952227,1755912695111,-557.81,0.0001452,2]
[380952228,1755912695120,-1327.17,0.0001452,2]
[380952229,1755912695129,-621.05,0.0001452,2]
[380952230,1755912695139,-151.0,0.0001452,2]
[380952231,1755912695360,-400.0,0.0001452,2]
[380952232,1755912695374,-151.0,0.0001452,2]
[380952233,1755912695384,-532.88,0.0001452,2]
[380952234,1755912695393,-811.77,0.0001452,2]
[380952235,1755912695403,-400.0,0.0001452,2]
[380952236,1755912695412,-482.24,0.0001452,2]
[380952237,1755912695421,-448.05,0.0001452,2]
[380952238,1755912695431,-786.36,0.0001452,2]
[380952239,1755912695440,-825.64,0.0001452,2]
[380952240,1755912695449,-400.0,0.0001452,2]
[380952241,1755912695459,-508.4,0.0001452,2]
[380952242,1755912695468,-400.0,0.0001452,2]
[380952243,1755912695477,-400.0,0.0001452,2]
[380952244,1755912695487,-400.0,0.0001452,2]
[380952245,1755912695497,-400.0,0.0001452,2]
[380952246,1755912695506,-1160.25,0.0001452,2]
[380952247,1755912695515,-471.12,0.0001452,2]
[380952248,1755912695525,-478.08,0.0001452,2]
[380952249,1755912695534,-522.09,0.0001452,2]
[380952250,1755912695543,-400.0,0.0001452,2]
[380952251,1755912695553,-400.0,0.0001452,2]
[380952252,1755912695562,-1658.24,0.0001452,2]
[380952253,1755912695570,-876.0,0.0001452,2]
[380952254,1755912695580,-400.0,0.0001452,2]
[380952255,1755912695589,-413.45,0.0001452,2]
[380952256,1755912695598,-400.01,0.0001452,2]
[380952257,1755912695607,-928.99,0.0001452,2]
[380952258,1755912695617,-535.34,0.0001452,2]
[380952259,1755912695626,-1082.57,0.0001452,2]
[380952260,1755912695635,-400.0,0.0001452,2]
[380952261,1755912695646,-599.68,0.0001452,2]
[380952262,1755912695654,-581.91,0.0001452,2]
[380952263,1755912695664,-576.13,0.0001452,2]
[380952264,1755912695673,-808.82,0.0001452,2]
[380952265,1755912695684,-677.9,0.0001452,2]
[380952266,1755912695693,-704.93,0.0001452,2]